bitfinex-derivatives/quotes_BTCF0:USTF0_20250609
["timestamp","ask_amount","ask_price","bid_price","bid_amount"]
[1749445881560,1.12734321,105450.0,105440.0,0.42581821]
[1749445881757,1.53903,105450.0,105440.0,0.54349142]
[1749445882366,1.53903,105450.0,105440.0,0.57559142]
[1749445882567,1.53903,105450.0,105440.0,0.60839142]
[1749445883267,1.53903,105450.0,105440.0,0.49071821]
[1749445885574,1.65670321,105450.0,105440.0,0.49071821]
[1749445886284,1.22634321,105450.0,105440.0,0.49071821]
[1749445886472,1.65674321,105450.0,105440.0,0.49071821]
[1749445886670,0.97797,105450.0,105440.0,0.4899767]
[1749445886868,1.08377,105450.0,105440.0,0.73807082]
[1749445887167,0.72297,105450.0,105440.0,0.77077082]
[1749445891675,0.72297,105450.0,105440.0,1.13157082]
[1749445892972,0.103,105450.0,105440.0,1.13157082]
[1749445893169,0.004,105450.0,105440.0,1.5389202]
[1749445893373,0.004,105450.0,105440.0,1.42124699]
[1749445893771,0.004,105450.0,105440.0,1.62810366]
[1749445894279,0.002,105450.0,105440.0,1.62810366]
[1749445894478,0.001,105450.0,105440.0,1.71814699]
[1749445894674,0.002,105450.0,105440.0,1.71814699]
[1749445894880,0.002,105450.0,105440.0,1.57005287]
[1749445895172,0.002,105450.0,105440.0,1.77690954]
[1749445895381,0.002,105450.0,105440.0,1.89458275]
[1749445896278,0.002,105450.0,105440.0,1.92468798]
[1749445897180,0.002,105450.0,105440.0,1.71783131]
[1749445899068,0.002,105450.0,105440.0,1.79260057]
[1749445899777,0.002,105450.0,105440.0,1.69776057]
[1749445902880,0.002,105450.0,105440.0,1.81543378]
[1749445904284,0.002,105450.0,105440.0,2.02229045]
[1749445904680,0.002,105450.0,105440.0,1.90461724]
[1749445905079,0.002,105450.0,105440.0,1.69776057]
[1749445906288,0.19157,105450.0,105440.0,1.80461724]
[1749445906487,0.28727,105450.0,105440.0,1.59776057]
[1749445907484,0.28727,105450.0,105440.0,1.50016057]
[1749445908486,0.28727,105450.0,105440.0,1.53809057]
[1749445910388,0.28727,105450.0,105440.0,1.74494724]
[1749445910590,0.28727,105450.0,105440.0,1.84494724]
[1749445910889,0.28727,105450.0,105440.0,1.63809057]
[1749445911791,0.28727,105450.0,105440.0,1.27729057]
[1749445911982,0.28727,105450.0,105440.0,1.63809057]
[1749445912491,0.28727,105450.0,105440.0,1.84494724]
[1749445912882,0.28727,105450.0,105440.0,1.48414724]
[1749445913083,0.28727,105450.0,105440.0,1.84494724]
[1749445913385,0.28727,105450.0,105440.0,1.84496971]
[1749445914192,0.28727,105450.0,105440.0,1.6971688]
[1749445915698,0.28727,105450.0,105440.0,1.7350988]
[1749445918401,0.28727,105450.0,105440.0,1.3742988]
[1749445919599,0.28727,105450.0,105440.0,1.29952954]
[1749445921514,0.28727,105450.0,105440.0,0.96458312]
[1749445921701,0.28727,105450.0,105440.0,1.08225633]
[1749445922205,0.28727,105450.0,105440.0,1.08185633]
[1749445922802,0.28727,105450.0,105440.0,1.08225633]
[1749445923307,0.64807,105450.0,105440.0,1.08225633]
[1749445923704,0.28727,105450.0,105440.0,1.08225633]
[1749445924104,0.28727,105450.0,105440.0,0.78535633]
[1749445925406,0.64807,105450.0,105440.0,0.78535633]
[1749445926605,0.28727,105450.0,105440.0,0.78535633]
[1749445928108,0.64807,105450.0,105440.0,0.78535633]
[1749445928405,0.28727,105450.0,105440.0,0.78535633]
[1749445928608,0.64807,105450.0,105440.0,0.78535633]
[1749445928806,0.64807,105450.0,105440.0,0.66768312]
[1749445929004,0.76574321,105450.0,105440.0,0.47284695]
[1749445929307,0.76574321,105450.0,105440.0,0.53172213]
[1749445929500,0.64807,105450.0,105440.0,0.53132213]
[1749445929806,0.64807,105450.0,105440.0,0.53172213]
[1749445930207,0.64807,105450.0,105440.0,0.59052016]
[1749445936310,0.28727,105450.0,105440.0,0.59052016]
[1749445936515,0.64807,105450.0,105440.0,0.59052016]
[1749445939313,0.28727,105450.0,105440.0,0.59052016]
[1749445939511,0.64807,105450.0,105440.0,0.59052016]
[1749445939708,0.28727,105450.0,105440.0,0.59052016]
[1749445940015,0.28727,105450.0,105440.0,0.70819337]
[1749445941410,0.28727,105450.0,105440.0,0.59052016]
[1749445944514,0.28727,105450.0,105440.0,0.70819337]
[1749445946819,0.28727,105450.0,105440.0,0.59052016]
[1749445948015,0.28727,105450.0,105440.0,0.70819337]
[1749445948216,0.28727,105450.0,105440.0,0.59052016]
[1749445950319,0.28727,105450.0,105440.0,0.73858497]
[1749445950725,0.28727,105450.0,105440.0,0.59052016]
[1749445951124,0.28727,105450.0,105440.0,0.71224997]
[1749445951319,0.28727,105450.0,105440.0,0.59457676]
[1749445952718,0.28727,105450.0,105440.0,0.47690355]
[1749445952919,0.28727,105450.0,105440.0,0.59457676]
[1749445953321,0.28727,105450.0,105440.0,0.59052016]
[1749445954325,0.64807,105450.0,105440.0,0.59052016]
[1749445954628,0.28727,105450.0,105440.0,0.59052016]
[1749445957420,0.64807,105450.0,105440.0,0.59052016]
[1749445959227,0.64807,105450.0,105440.0,0.73862872]
[1749445959424,0.64807,105450.0,105440.0,0.53177205]
[1749445963934,0.76574321,105450.0,105440.0,0.53177205]
[1749445964261,0.64807,105450.0,105440.0,0.53178355]
[1749445964430,0.64807,105450.0,105440.0,0.53138355]
[1749445964631,0.64807,105450.0,105440.0,0.53178355]
[1749445967833,0.64807,105450.0,105440.0,0.34219555]
[1749445968022,0.76574321,105450.0,105440.0,0.19482081]
[1749445968435,0.76574321,105450.0,105440.0,0.19442081]
[1749445968830,0.76574321,105450.0,105440.0,0.19482081]
[1749445969031,0.76574321,105450.0,105440.0,0.38440881]
[1749445969328,0.76574321,105450.0,105440.0,0.19482081]
[1749445970139,0.76574321,105450.0,105440.0,0.50208202]
[1749445970637,0.76574321,105450.0,105440.0,0.59084835]
[1749445970934,0.76574321,105450.0,105440.0,0.47317514]
[1749445971135,0.76574321,105450.0,105440.0,0.59084835]
[1749445971734,1.12654321,105450.0,105440.0,0.59084835]
[1749445973433,1.12654321,105450.0,105440.0,0.47242982]
[1749445974034,0.40494321,105450.0,105440.0,0.47242982]
[1749445974234,1.12654321,105450.0,105440.0,0.47242982]
[1749445974849,1.12654321,105450.0,105440.0,0.35475661]
[1749445975132,1.12654321,105450.0,105440.0,0.22431611]
[1749445975535,1.12654321,105450.0,105440.0,0.22391611]
[1749445975732,1.12654321,105450.0,105440.0,0.22431611]
[1749445975939,1.12654321,105450.0,105440.0,0.26867171]
[1749445976442,1.12654321,105450.0,105440.0,0.17990538]
[1749445976742,1.12654321,105450.0,105440.0,0.18396198]
[1749445981049,1.33905643,105450.0,105440.0,0.18396198]
[1749445981643,1.33905643,105450.0,105440.0,0.18353259]
[1749445981846,1.33905643,105450.0,105440.0,0.18393259]
[1749445982147,1.33905643,105450.0,105440.0,0.18353259]
[1749445982346,1.33905643,105450.0,105440.0,0.18393259]
[1749445982948,1.22138322,105450.0,105440.0,0.18393259]
[1749445984655,1.12654321,105450.0,105440.0,0.18393259]
[1749445988757,1.00887,105450.0,105440.0,0.1981653]
[1749445988965,1.65662321,105450.0,105440.0,0.18393259]
[1749445989156,1.65662321,105450.0,105440.0,0.19816528]
[1749445989463,1.65662321,105450.0,105440.0,0.18393259]
[1749445989659,1.65662321,105450.0,105440.0,0.19816522]
[1749445989860,1.65662321,105450.0,105440.0,0.18393259]
[1749445990066,1.65662321,105450.0,105440.0,0.19816522]
[1749445990960,1.65662321,105450.0,105440.0,0.18393259]
[1749445991157,1.65662321,105450.0,105440.0,0.198179]
[1749445991362,1.65662321,105450.0,105440.0,0.18393259]
[1749445991663,1.65662321,105450.0,105440.0,0.198179]
[1749445991858,1.65662321,105450.0,105440.0,0.18393259]
[1749445992161,1.65662321,105450.0,105440.0,0.198179]
[1749445992750,1.65662321,105450.0,105440.0,0.19817892]
[1749445992952,1.65662321,105450.0,105440.0,0.18393259]
[1749445993257,1.00887,105450.0,105440.0,0.4911938]
[1749445993461,1.65726321,105450.0,105440.0,0.54988002]
[1749445994165,1.65726321,105450.0,105440.0,0.54986974]
[1749445994869,1.65726321,105450.0,105440.0,0.53563392]
[1749445995168,1.65726321,105450.0,105440.0,0.54986974]
[1749445995359,1.65726321,105450.0,105440.0,0.43219653]
[1749445996262,1.65726321,105450.0,105440.0,0.43219547]
[1749445996566,1.65726321,105450.0,105440.0,0.35881321]
[1749445996755,1.65726321,105450.0,105440.0,0.37304797]
[1749445996959,1.65726321,105450.0,105440.0,0.35881321]
[1749445997168,1.53959,105450.0,105440.0,0.37304797]
[1749445997369,1.65726321,105450.0,105440.0,0.37304797]
[1749445997763,1.53959,105450.0,105440.0,0.35881321]
[1749445997963,1.65726321,105450.0,105440.0,0.49073182]
[1749445998768,1.65726321,105450.0,105440.0,0.47648642]
[1749445999068,1.06334321,105450.0,105440.0,0.47648642]
[1749445999368,1.59494321,105450.0,105440.0,0.54088642]
[1749445999565,1.59494321,105450.0,105440.0,0.57218642]
[1749446000273,1.03084321,105450.0,105440.0,0.57218642]
[1749446000469,1.56236321,105450.0,105440.0,0.69060495]
[1749446000766,1.56236321,105450.0,105440.0,0.57218642]
[1749446002672,1.44469,105450.0,105440.0,0.57218642]
[1749446002873,1.56236321,105450.0,105440.0,0.57218642]
[1749446004768,0.7236,105450.0,105440.0,0.68985963]
[1749446004968,0.10204,105450.0,105440.0,1.32768657]
[1749446005177,0.10204,105450.0,105440.0,1.30484953]
[1749446005365,0.10204,105450.0,105440.0,1.40484953]
[1749446006376,0.29161,105450.0,105440.0,1.40484953]
[1749446007374,0.10204,105450.0,105440.0,1.40484953]
[1749446009373,0.10204,105450.0,105440.0,1.25672947]
[1749446009969,0.5342,105450.0,105440.0,1.25672947]
[1749446010278,0.72377,105450.0,105440.0,1.40484953]
[1749446012381,0.72377,105450.0,105440.0,1.30484953]
[1749446012777,0.72377,105450.0,105440.0,1.06950311]
[1749446012969,0.72377,105450.0,105440.0,1.20484953]
[1749446014177,0.72377,105450.0,105440.0,0.84404953]
[1749446014377,0.72377,105450.0,105440.0,1.20484953]
[1749446015676,0.72377,105450.0,105440.0,1.50174953]
[1749446017085,0.72377,105450.0,105440.0,1.14094953]
[1749446017285,0.72377,105450.0,105440.0,1.50174953]
[1749446017788,0.72377,105450.0,105440.0,1.26640311]
[1749446017982,0.72377,105450.0,105440.0,1.50174953]
[1749446021786,0.75427,105450.0,105440.0,1.50174953]
[1749446023586,0.78517,105450.0,105440.0,1.50174953]
[1749446025790,0.78517,105450.0,105440.0,1.14094953]
[1749446025986,0.78517,105450.0,105440.0,1.50174953]
[1749446026984,0.78517,105450.0,105440.0,1.14094953]
[1749446027189,0.81747,105450.0,105440.0,1.50174953]
[1749446027690,0.81747,105450.0,105440.0,1.46994953]
[1749446028191,0.81747,105450.0,105440.0,1.43864953]
[1749446029093,0.81747,105450.0,105440.0,1.40604953]
[1749446030394,0.81747,105450.0,105440.0,1.6129062]
[1749446031296,0.81747,105450.0,105440.0,1.46478614]
[1749446035097,0.81747,105450.0,105440.0,1.22943972]
[1749446035398,0.81747,105450.0,105440.0,1.46478614]
[1749446041398,0.81747,105450.0,105440.0,1.22943972]
[1749446041605,0.81747,105450.0,105440.0,1.46478614]
[1749446044809,0.81747,105450.0,105440.0,1.10398614]
[1749446045110,0.81747,105450.0,105440.0,1.46478614]
[1749446045908,0.81747,105450.0,105440.0,1.56478614]
[1749446048414,0.81747,105450.0,105440.0,1.61290522]
[1749446048719,0.81747,105450.0,105440.0,1.40604855]
[1749446050120,0.81747,105450.0,105440.0,1.04524855]
[1749446050323,0.81747,105450.0,105440.0,1.40604855]
[1749446052123,0.81747,105450.0,105440.0,1.04524855]
[1749446052323,0.81747,105450.0,105440.0,1.40604855]
[1749446053324,0.81747,105450.0,105440.0,1.28837534]
[1749446053538,0.81747,105450.0,105440.0,1.40604855]
[1749446055126,0.81747,105450.0,105440.0,1.50604855]
[1749446055322,0.002,105450.0,105440.0,1.66934855]
[1749446055527,0.53316,105450.0,105440.0,1.81722176]
[1749446055724,0.7227299,105450.0,105440.0,1.81722176]
[1749446055926,0.53316,105450.0,105440.0,1.81722176]
[1749446058331,0.002,105450.0,105440.0,1.81802954]
[1749446058532,0.53304,105450.0,105440.0,1.66991046]
[1749446060838,0.10176,105450.0,105440.0,1.66991046]
[1749446061037,0.53292,105450.0,105440.0,1.66991046]
[1749446062138,0.53292,105450.0,105440.0,1.56991046]
[1749446064134,0.53292,105450.0,105440.0,1.64677512]
[1749446065038,0.53292,105450.0,105440.0,1.67641321]
[1749446065236,0.53292,105450.0,105440.0,1.79408642]
[1749446067139,0.53292,105450.0,105440.0,1.89408642]
[1749446068044,0.53292,105450.0,105440.0,1.77641321]
[1749446068540,0.53292,105450.0,105440.0,1.89408642]
[1749446069040,0.56432,105450.0,105440.0,1.89408642]
[1749446069639,0.56432,105450.0,105440.0,1.95282401]
[1749446074242,0.56432,105450.0,105440.0,1.59202401]
[1749446074436,0.59632,105450.0,105440.0,1.95282401]
[1749446077248,0.59632,105450.0,105440.0,1.59980438]
[1749446077447,0.59632,105450.0,105440.0,1.95282401]
[1749446078749,0.59632,105450.0,105440.0,1.8351508]
[1749446079465,0.59632,105450.0,105440.0,1.4743508]
[1749446079652,0.59632,105450.0,105440.0,1.8351508]
[1749446081347,0.59632,105450.0,105440.0,1.59980438]
[1749446081546,0.59632,105450.0,105440.0,1.8351508]
[1749446081747,0.62942,105450.0,105440.0,1.8351508]
[1749446083144,0.62942,105450.0,105440.0,1.8041508]
[1749446083444,0.62942,105450.0,105440.0,1.7739508]
[1749446085849,0.62942,105450.0,105440.0,1.4131508]
[1749446086151,0.62942,105450.0,105440.0,1.7739508]
[1749446086852,0.62942,105450.0,105440.0,1.4131508]
[1749446087047,0.62942,105450.0,105440.0,1.7739508]
[1749446094151,0.62942,105450.0,105440.0,1.89162401]
[1749446098055,0.00935356,105460.0,105450.0,0.18957]
[1749446098255,0.59406,105460.0,105450.0,1.03382614]
[1749446098457,0.60357407,105460.0,105450.0,1.06482614]
[1749446098658,0.60357407,105460.0,105450.0,1.15966231]
[1749446098954,0.79312607,105460.0,105450.0,1.15966231]
[1749446099166,0.60757407,105460.0,105450.0,1.15966231]
[1749446099462,0.60757407,105460.0,105450.0,1.36651898]
[1749446099854,0.79712607,105460.0,105450.0,1.36651898]
[1749446100153,0.79712607,105460.0,105450.0,1.10073605]
[1749446101261,0.83008607,105460.0,105450.0,1.10073605]
[1749446101460,0.83008607,105460.0,105450.0,1.39763605]
[1749446101662,0.64053407,105460.0,105450.0,1.70131333]
[1749446102063,0.64053407,105460.0,105450.0,1.59116926]
[1749446102361,0.64053407,105460.0,105450.0,1.47349605]
[1749446103958,0.04581407,105460.0,105450.0,1.59116926]
[1749446104164,0.57533407,105460.0,105450.0,1.90232146]
[1749446104462,0.57533407,105460.0,105450.0,1.69546479]
[1749446104964,0.60553407,105460.0,105450.0,1.69546479]
[1749446105164,0.10308,105460.0,105450.0,1.69546479]
[1749446105364,0.10308,105460.0,105450.0,1.75426926]
[1749446105365,0.53352,105460.0,105450.0,1.75426926]
[1749446106358,0.004,105460.0,105450.0,1.75426926]
[1749446106581,0.004,105460.0,105450.0,1.75832586]
[1749446109865,0.004,105460.0,105450.0,1.87599907]
[1749446110168,0.004,105460.0,105450.0,1.75832586]
[1749446110365,0.43004,105480.0,105450.0,1.82887329]
[1749446110667,1.02256,105480.0,105470.0,0.289534]
[1749446110867,0.63498035,105480.0,105470.0,0.289534]
[1749446111063,0.20454035,105480.0,105470.0,0.289534]
[1749446111362,0.63498035,105480.0,105470.0,0.53226829]
[1749446111566,0.63698035,105480.0,105470.0,0.62031103]
[1749446111769,0.64098035,105480.0,105470.0,0.62031103]
[1749446111966,0.64098035,105480.0,105470.0,0.6499415]
[1749446112359,0.11146035,105480.0,105470.0,1.06451471]
[1749446112562,0.64094035,105480.0,105470.0,1.09471471]
[1749446112766,0.64094035,105480.0,105470.0,1.19471471]
[1749446112963,0.63994035,105480.0,105470.0,1.19471471]
[1749446113163,0.64194035,105480.0,105470.0,1.19471471]
[1749446113367,0.21154035,105480.0,105470.0,1.19471471]
[1749446113571,0.60874035,105480.0,105470.0,1.25711471]
[1749446114068,0.60674035,105480.0,105470.0,1.25711471]
[1749446115270,0.60674035,105480.0,105470.0,1.1394415]
[1749446115571,0.59748,105480.0,105470.0,1.5002415]
[1749446115768,0.068,105480.0,105470.0,1.58721471]
[1749446116066,0.56956739,105490.0,105480.0,0.289516]
[1749446116265,0.03064228,105490.0,105480.0,1.3007176]
[1749446116466,0.52948,105500.0,105490.0,0.2842402]
[1749446116671,0.52948,105500.0,105490.0,0.5673804]
[1749446117071,0.09908,105500.0,105490.0,0.5996804]
[1749446117269,0.52948,105500.0,105490.0,0.5996804]
[1749446118367,0.70613482,105510.0,105500.0,0.1894801]
[1749446118672,1.13649482,105510.0,105500.0,0.45470379]
[1749446119084,0.96335132,105510.0,105500.0,0.45470379]
[1749446119282,1.15281342,105510.0,105500.0,0.3956836]
[1749446119466,1.15281342,105510.0,105500.0,0.45466067]
[1749446119670,0.99595132,105510.0,105500.0,0.4252472]
[1749446119870,1.18541362,105510.0,105500.0,0.4252472]
[1749446120071,0.99595132,105510.0,105500.0,0.54292041]
[1749446120265,0.47251132,105510.0,105500.0,0.54292041]
[1749446120468,1.00195132,105510.0,105500.0,0.57552041]
[1749446121175,1.19141342,105510.0,105500.0,0.57552041]
[1749446121374,1.19741342,105510.0,105500.0,0.4578472]
[1749446122065,1.00795132,105510.0,105500.0,0.4578472]
[1749446122475,0.47851132,105510.0,105500.0,0.33975331]
[1749446122775,0.81253132,105510.0,105500.0,0.68340875]
[1749446122976,0.81253132,105510.0,105500.0,0.71520875]
[1749446123368,0.84453132,105510.0,105500.0,0.80354258]
[1749446123569,0.83526228,105510.0,105500.0,0.80354258]
[1749446123769,0.83526228,105510.0,105500.0,0.70354258]
[1749446123968,0.83526228,105510.0,105500.0,0.46819616]
[1749446124170,0.83526228,105510.0,105500.0,0.80354258]
[1749446124774,0.83526228,105510.0,105500.0,0.70354258]
[1749446125180,0.83526228,105510.0,105500.0,1.00044258]
[1749446125781,0.84468914,105510.0,105500.0,1.00044258]
[1749446125980,1.06425134,105510.0,105500.0,0.96864258]
[1749446126182,1.09745134,105510.0,105500.0,0.96864258]
[1749446127194,0.90798914,105510.0,105500.0,0.96864258]
[1749446127892,1.09745134,105510.0,105500.0,0.96864258]
[1749446128393,0.90798914,105510.0,105500.0,1.12464647]
[1749446128594,1.09745134,105510.0,105500.0,1.12464647]
[1749446129694,1.09745134,105510.0,105500.0,1.09344647]
[1749446130596,1.09745134,105510.0,105500.0,1.13135647]
[1749446131594,1.08802448,105510.0,105500.0,1.13135647]
[1749446132596,0.89856228,105510.0,105500.0,1.13135647]
[1749446133394,0.89856228,105510.0,105500.0,1.04302264]
[1749446133620,0.73680537,105510.0,105500.0,1.40382264]
[1749446133893,0.54734317,105510.0,105500.0,1.50382264]
[1749446134994,0.73680537,105510.0,105500.0,1.50382264]
[1749446137491,0.73680537,105510.0,105500.0,1.40382264]
[1749446137801,0.73680537,105510.0,105500.0,1.50382264]
[1749446138098,0.73680537,105510.0,105500.0,1.50787924]
[1749446138996,0.54734317,105510.0,105500.0,1.60787924]
[1749446140097,0.54734317,105510.0,105500.0,1.60382264]
[1749446143900,0.54734317,105510.0,105500.0,1.71021211]
[1749446145205,0.54734317,105510.0,105500.0,1.71426871]
[1749446146206,0.54734317,105510.0,105500.0,1.71021211]
[1749446146906,0.54134317,105510.0,105500.0,1.71021211]
[1749446147106,0.54434317,105510.0,105500.0,1.71021211]
[1749446147300,0.53834317,105510.0,105500.0,1.71021211]
[1749446147603,0.54134317,105510.0,105500.0,1.71021211]
[1749446149499,1.09160537,105510.0,105500.0,0.90489844]
[1749446149697,1.09160537,105510.0,105500.0,0.92257165]
[1749446149899,1.09160537,105510.0,105500.0,0.92297165]
[1749446151608,1.09160537,105510.0,105500.0,0.80529844]
[1749446151796,1.09160537,105510.0,105500.0,0.92297165]
[1749446152309,1.09160537,105510.0,105500.0,1.04064486]
[1749446153209,0.37652317,105510.0,105500.0,1.23561013]
[1749446153507,0.54584317,105510.0,105500.0,1.58149402]
[1749446153700,0.54584317,105510.0,105500.0,1.95078232]
[1749446153906,0.54580317,105510.0,105500.0,1.95078232]
[1749446154811,0.01572317,105510.0,105500.0,1.95078232]
[1749446155109,0.43746228,105510.0,105500.0,1.89168268]
[1749446155307,0.43746228,105510.0,105500.0,1.74369402]
[1749446155502,0.43746228,105510.0,105500.0,1.95078232]
[1749446156107,0.00614228,105510.0,105500.0,1.95078232]
[1749446156508,0.00314228,105510.0,105500.0,1.95078232]
[1749446156705,0.00214228,105510.0,105500.0,1.95078232]
[1749446156905,0.00314228,105510.0,105500.0,1.95078232]
[1749446157412,0.00314228,105510.0,105500.0,1.96028186]
[1749446159111,0.00314228,105510.0,105500.0,1.95078232]
[1749446161613,0.53056,105520.0,105510.0,0.1894622]
[1749446161824,0.53056,105520.0,105510.0,1.48579692]
[1749446162007,0.53056,105520.0,105510.0,1.36812371]
[1749446162214,0.53056,105520.0,105510.0,1.46290594]
[1749446162815,0.53056,105520.0,105510.0,1.58057915]
[1749446163017,0.53356,105520.0,105510.0,1.58057915]
[1749446163315,0.53656,105520.0,105510.0,1.46290594]
[1749446163814,0.56946,105520.0,105510.0,1.46290594]
[1749446164009,0.46994,105520.0,105510.0,1.46290594]
[1749446164715,0.47922064,105520.0,105510.0,1.46290594]
[1749446164940,0.46994,105520.0,105510.0,1.46290594]
[1749446165215,0.46994,105520.0,105510.0,1.50081594]
[1749446165518,0.46994,105520.0,105510.0,1.53872594]
[1749446166016,0.0389,105520.0,105510.0,1.53872594]
[1749446167320,0.0389,105520.0,105510.0,1.68652822]
[1749446167515,0.0389,105520.0,105510.0,1.53872594]
[1749446169218,0.0389,105520.0,105510.0,1.68651019]
[1749446169418,0.04843139,105520.0,105510.0,1.47942189]
[1749446172424,0.006,105520.0,105510.0,1.5970951]
[1749446173125,0.0154208,105520.0,105510.0,1.5970951]
[1749446174328,0.006,105520.0,105510.0,1.5970951]
[1749446178434,0.006,105520.0,105510.0,1.47942189]
[1749446179328,0.1954442,105520.0,105510.0,1.36174868]
[1749446179539,0.2279442,105520.0,105510.0,1.11862189]
[1749446179830,0.2941442,105520.0,105510.0,1.11862189]
[1749446180627,0.1047,105520.0,105510.0,1.11862189]
[1749446182836,0.2941442,105520.0,105510.0,1.11862189]
[1749446184635,0.2941442,105520.0,105510.0,1.17792594]
[1749446184835,0.1047,105520.0,105510.0,1.17792594]
[1749446185043,0.1047,105520.0,105510.0,1.53872594]
[1749446185430,0.1047,105520.0,105510.0,1.17792594]
[1749446185733,0.1047,105520.0,105510.0,1.53872594]
[1749446186136,0.0714,105520.0,105510.0,1.53872594]
[1749446186335,0.0385,105520.0,105510.0,1.53872594]
[1749446186636,0.006,105520.0,105510.0,1.53872594]
[1749446187751,0.006,105520.0,105510.0,1.65639915]
[1749446188240,0.006,105520.0,105510.0,1.55639915]
[1749446188943,0.003,105520.0,105510.0,1.55639915]
[1749446189234,0.001,105520.0,105510.0,1.55639915]
[1749446189442,0.57344243,105530.0,105520.0,0.1894442]
[1749446189642,0.57344243,105530.0,105520.0,0.6685488]
[1749446189964,0.57344243,105530.0,105520.0,0.72767892]
[1749446190141,0.57344243,105530.0,105520.0,0.82244319]
[1749446190445,0.57344243,105530.0,105520.0,1.26729865]
[1749446190936,0.57644243,105530.0,105520.0,1.26729865]
[1749446191138,0.77471798,105540.0,105530.0,0.1894263]
[1749446191139,0.53124,105540.0,105530.0,0.1894263]
[1749446191339,0.53124,105540.0,105530.0,0.66822818]
[1749446191643,0.53124,105540.0,105530.0,0.55055497]
[1749446191841,0.53124,105540.0,105530.0,0.64531924]
[1749446192344,0.7216883,105540.0,105530.0,0.64531924]
[1749446192544,0.7525883,105540.0,105530.0,0.64531924]
[1749446193237,0.7525883,105540.0,105530.0,0.78321924]
[1749446193741,0.7525883,105540.0,105530.0,0.82111924]
[1749446196040,0.7846883,105540.0,105530.0,0.82111924]
[1749446196240,0.7846883,105540.0,105530.0,1.11801924]
[1749446199047,0.2538083,105540.0,105530.0,1.11801924]
[1749446199347,0.7844083,105540.0,105530.0,1.11801924]
[1749446199749,0.7844083,105540.0,105530.0,1.00034603]
[1749446200144,0.7844083,105540.0,105530.0,1.11801924]
[1749446207651,0.7844083,105540.0,105530.0,1.00034603]
[1749446207849,0.7844083,105540.0,105530.0,1.11801924]
[1749446212457,0.7844083,105540.0,105530.0,1.00034603]
[1749446212754,0.7844083,105540.0,105530.0,1.11801924]
[1749446213353,1.26288151,105540.0,105530.0,1.02251924]
[1749446213557,1.1756083,105540.0,105530.0,0.92251924]
[1749446213959,1.29328151,105540.0,105530.0,0.53085497]
[1749446214160,1.1756083,105540.0,105530.0,0.53125497]
[1749446214557,0.7531884,105540.0,105530.0,0.71395799]
[1749446214754,0.7531884,105540.0,105530.0,0.72798478]
[1749446214962,0.7531884,105540.0,105530.0,0.79178478]
[1749446215159,0.7531884,105540.0,105530.0,0.79218478]
[1749446215461,0.2217084,105540.0,105530.0,0.79218478]
[1749446215761,0.7531484,105540.0,105530.0,0.79218478]
[1749446216562,0.7531484,105540.0,105530.0,1.15298478]
[1749446216762,0.7531484,105540.0,105530.0,0.79218478]
[1749446217063,0.7531484,105540.0,105530.0,1.15298478]
[1749446217263,0.7531484,105540.0,105530.0,1.15280652]
[1749446218562,0.7849484,105540.0,105530.0,1.15280652]
[1749446219460,0.7849484,105540.0,105530.0,0.85288159]
[1749446219672,0.8169484,105540.0,105530.0,0.87037654]
[1749446219964,0.8169484,105540.0,105530.0,1.13557654]
[1749446220568,0.8169484,105540.0,105530.0,0.65728159]
[1749446220569,1.1777484,105540.0,105530.0,0.65728159]
[1749446220860,1.1777484,105540.0,105530.0,0.52105546]
[1749446221072,1.29524335,105540.0,105530.0,0.49108237]
[1749446221273,1.29524335,105540.0,105530.0,0.49148237]
[1749446221473,1.29524335,105540.0,105530.0,0.49108237]
[1749446221669,1.29524335,105540.0,105530.0,0.3727]
[1749446221972,1.29524335,105540.0,105530.0,0.3731]
[1749446222473,1.29524335,105540.0,105530.0,0.49148237]
[1749446222873,1.29524335,105540.0,105530.0,0.68090867]
[1749446223272,1.65604335,105540.0,105530.0,0.68090867]
[1749446223474,1.12460335,105540.0,105530.0,0.68090867]
[1749446223676,1.65676335,105540.0,105530.0,0.68090867]
[1749446224281,0.93516335,105540.0,105530.0,0.68090867]
[1749446224479,1.65676335,105540.0,105530.0,0.68090867]
[1749446225569,0.93516335,105540.0,105530.0,0.68090867]
[1749446225770,1.65676335,105540.0,105530.0,0.38400867]
[1749446228769,2.01909151,105540.0,105530.0,0.164885]
[1749446229076,2.01909151,105540.0,105530.0,0.22360913]
[1749446229375,1.76909151,105540.0,105530.0,0.22400913]
[1749446239383,1.88668686,105540.0,105530.0,0.22400913]
[1749446239685,1.25977486,105540.0,105530.0,0.22400913]
[1749446239885,1.79149486,105540.0,105530.0,0.22400913]
[1749446241686,2.22125486,105540.0,105530.0,0.22400913]
[1749446243187,1.68953486,105540.0,105530.0,0.22400913]
[1749446243389,2.22109486,105540.0,105530.0,0.22400913]
[1749446249483,2.22109486,105540.0,105530.0,0.164885]
[1749446253889,1.49949486,105540.0,105530.0,0.164885]
[1749446254091,2.22109486,105540.0,105530.0,0.164885]
[1749446258691,2.31584686,105540.0,105530.0,0.164885]
[1749446259087,2.31584686,105540.0,105530.0,0.164485]
[1749446259287,2.31584686,105540.0,105530.0,0.164885]
[1749446262288,2.31504686,105540.0,105530.0,0.164885]
[1749446262692,2.22029486,105540.0,105530.0,0.164885]
[1749446263996,2.22029486,105540.0,105530.0,0.22407969]
[1749446264199,2.22029486,105540.0,105530.0,0.22407975]
[1749446265994,1.49869486,105540.0,105530.0,0.22407975]
[1749446266198,2.22029486,105540.0,105530.0,0.22407975]
[1749446267002,1.98520456,105540.0,105530.0,0.22407975]
[1749446267300,2.22029486,105540.0,105530.0,0.22407975]
[1749446268494,2.22029486,105540.0,105530.0,0.17727943]
[1749446268697,2.49162023,105540.0,105530.0,0.10398854]
[1749446268902,2.58016256,105540.0,105530.0,0.10358854]
[1749446269200,2.46261741,105540.0,105530.0,0.10398854]
[1749446269399,2.58016256,105540.0,105530.0,0.10398854]
[1749446269593,2.46261741,105540.0,105530.0,0.04479379]
[1749446270804,0.1894264,105530.0,105520.0,0.14787975]
[1749446270995,0.76627155,105530.0,105520.0,0.14787975]
[1749446272003,0.76627155,105530.0,105520.0,0.14887975]
[1749446272804,0.8838167,105530.0,105520.0,0.14987975]
[1749446272997,0.8838167,105530.0,105520.0,0.14887975]
[1749446273192,0.8858167,105530.0,105520.0,0.06019475]
[1749446273397,0.8858167,105530.0,105520.0,0.05919475]
[1749446273598,0.8878167,105530.0,105520.0,0.05919475]
[1749446275902,0.77027155,105530.0,105520.0,0.05919475]
[1749446276995,0.6527264,105530.0,105520.0,0.05919475]
[1749446277200,0.77027155,105530.0,105520.0,0.05919475]
[1749446282495,1.13107155,105530.0,105520.0,0.05919475]
[1749446283406,1.0135264,105530.0,105520.0,0.05919475]
[1749446283707,1.13107155,105530.0,105520.0,0.05919475]